[Event "Early-Titled-Tuesday-Blitz-February-06-2024"]
[Site "Chess.com"]
[Date "2024.02.06"]
[Round "6"]
[White "NovakRatko"]
[Black "Bekkedahl"]
[Result "1-0"]
[WhiteElo "2410"]
[BlackElo "2228"]
[TimeControl "180+1"]
[EndTime "9:07:59 PST"]
[Termination "NovakRatko won by resignation"]

1. d4 {[%clk 0:03:00.9]} 1... Nf6 {[%clk 0:02:58.4]} 2. c4 {[%clk 0:03:01.3]}
2... g6 {[%clk 0:02:58.5]} 3. Nc3 {[%clk 0:03:01]} 3... Bg7 {[%clk 0:02:59.1]}
4. e4 {[%clk 0:03:01.6]} 4... O-O {[%clk 0:02:59.8]} 5. f3 {[%clk 0:03:02.2]}
5... d6 {[%clk 0:02:59.7]} 6. Be3 {[%clk 0:03:00.9]} 6... c5 {[%clk 0:02:59]} 7.
dxc5 {[%clk 0:03:00.4]} 7... dxc5 {[%clk 0:02:58.4]} 8. Qxd8 {[%clk 0:03:01.3]}
8... Rxd8 {[%clk 0:02:58.1]} 9. Bxc5 {[%clk 0:03:01.9]} 9... Nc6 {[%clk
0:02:57.3]} 10. Nd5 {[%clk 0:03:01.2]} 10... Bd7 {[%clk 0:02:23.9]} 11. Nxe7+
{[%clk 0:03:00.3]} 11... Nxe7 {[%clk 0:02:23.3]} 12. Bxe7 {[%clk 0:03:00.7]}
12... Re8 {[%clk 0:02:20.2]} 13. Ba3 {[%clk 0:03:00.8]} 13... Rac8 {[%clk
0:02:08.9]} 14. Be2 {[%clk 0:02:44.3]} 14... Nh5 {[%clk 0:01:52.2]} 15. O-O-O
{[%clk 0:02:18.2]} 15... Ba4 {[%clk 0:01:48.2]} 16. b3 {[%clk 0:02:17.4]} 16...
Bc6 {[%clk 0:01:47.7]} 17. Bb2 {[%clk 0:02:13.5]} 17... Bh6+ {[%clk 0:01:43.3]}
18. Kb1 {[%clk 0:02:12.6]} 18... Nf4 {[%clk 0:01:44]} 19. g3 {[%clk 0:02:10.8]}
19... Ne6 {[%clk 0:01:37]} 20. Bd3 {[%clk 0:01:58.5]} 20... Red8 {[%clk
0:01:30.8]} 21. Ne2 {[%clk 0:01:57.2]} 21... Ng5 {[%clk 0:01:21.9]} 22. Rhf1
{[%clk 0:01:53.1]} 22... Rd7 {[%clk 0:01:16.7]} 23. h4 {[%clk 0:01:50.5]} 23...
Ne6 {[%clk 0:01:15.7]} 24. Bc2 {[%clk 0:01:47]} 24... Rcd8 {[%clk 0:01:15.9]}
25. Rxd7 {[%clk 0:01:46.2]} 25... Rxd7 {[%clk 0:01:16.8]} 26. Rd1 {[%clk
0:01:39.1]} 26... Rxd1+ {[%clk 0:01:06.4]} 27. Bxd1 {[%clk 0:01:39.1]} 27... Be3
{[%clk 0:01:06.3]} 28. Bc2 {[%clk 0:01:36.9]} 28... g5 {[%clk 0:00:51.8]} 29.
hxg5 {[%clk 0:01:30.2]} 29... Nxg5 {[%clk 0:00:51.6]} 30. Bd4 {[%clk 0:01:19.7]}
30... Bd2 {[%clk 0:00:43.9]} 31. f4 {[%clk 0:01:02.7]} 31... Nxe4 {[%clk
0:00:42.6]} 32. Bxa7 {[%clk 0:01:02.8]} 32... h5 {[%clk 0:00:31.6]} 33. a3
{[%clk 0:01:00.8]} 33... Be1 {[%clk 0:00:29.7]} 34. Nd4 {[%clk 0:00:35]} 34...
Bxg3 {[%clk 0:00:15.5]} 35. Nxc6 {[%clk 0:00:34.4]} 35... bxc6 {[%clk
0:00:16.2]} 36. Bxe4 {[%clk 0:00:34.2]} 36... h4 {[%clk 0:00:15.6]} 37. Bxc6
{[%clk 0:00:34]} 37... h3 {[%clk 0:00:15.9]} 38. Be3 {[%clk 0:00:33.4]} 38... f5
{[%clk 0:00:16]} 39. a4 {[%clk 0:00:32.4]} 39... Be1 {[%clk 0:00:14.6]} 40. Kc2
{[%clk 0:00:31.6]} 40... Kf7 {[%clk 0:00:15.1]} 41. Bd2 {[%clk 0:00:31.2]} 41...
Bf2 {[%clk 0:00:15]} 42. b4 {[%clk 0:00:31.3]} 42... Ke6 {[%clk 0:00:15.9]} 43.
Bf3 {[%clk 0:00:30.6]} 43... Kd6 {[%clk 0:00:16.8]} 44. Kd3 {[%clk 0:00:30.4]}
44... h2 {[%clk 0:00:17.3]} 45. c5+ {[%clk 0:00:30.1]} 45... Kc7 {[%clk
0:00:16.7]} 46. Be3 {[%clk 0:00:30.2]} 46... Bg3 {[%clk 0:00:16.4]} 47. b5
{[%clk 0:00:30.1]} 47... Be1 {[%clk 0:00:16.8]} 48. Kc4 {[%clk 0:00:28.4]} 48...
Ba5 {[%clk 0:00:15.6]} 49. Kd5 {[%clk 0:00:26.6]} 49... Bc3 {[%clk 0:00:14.5]}
50. Ke6 {[%clk 0:00:26.3]} 50... Bg7 {[%clk 0:00:12.9]} 51. Kxf5 {[%clk
0:00:26.2]} 51... Bb2 {[%clk 0:00:13.3]} 52. Ke6 {[%clk 0:00:26.4]} 52... Bc3
{[%clk 0:00:14.2]} 53. f5 {[%clk 0:00:26.5]} 53... Bb2 {[%clk 0:00:14.8]} 54.
Bf4+ {[%clk 0:00:25.7]} 54... Kd8 {[%clk 0:00:14.5]} 55. Bxh2 {[%clk 0:00:25.6]}
1-0

[Event "Early-Titled-Tuesday-Blitz-February-06-2024"]
[Site "Chess.com"]
[Date "2024.02.06"]
[Round "6"]
[White "betta2004"]
[Black "traviscottofficial"]
[Result "1-0"]
[WhiteElo "2543"]
[BlackElo "2683"]
[TimeControl "180+1"]
[EndTime "9:08:01 PST"]
[Termination "betta2004 won by checkmate"]

1. d4 {[%clk 0:02:59.8]} 1... Nf6 {[%clk 0:02:59]} 2. Nc3 {[%clk 0:02:58.5]}
2... d5 {[%clk 0:02:58.2]} 3. Bf4 {[%clk 0:02:57.9]} 3... c6 {[%clk 0:02:58.8]}
4. e3 {[%clk 0:02:53.3]} 4... Bf5 {[%clk 0:02:58.9]} 5. f3 {[%clk 0:02:45.9]}
5... e6 {[%clk 0:02:57]} 6. g4 {[%clk 0:02:44.5]} 6... Bg6 {[%clk 0:02:57.2]} 7.
h4 {[%clk 0:02:35]} 7... h6 {[%clk 0:02:55.2]} 8. Bd3 {[%clk 0:02:28.9]} 8...
Bxd3 {[%clk 0:02:55.3]} 9. Qxd3 {[%clk 0:02:29.8]} 9... Qb6 {[%clk 0:02:53.2]}
10. O-O-O {[%clk 0:02:24.6]} 10... Nbd7 {[%clk 0:02:53.1]} 11. Nge2 {[%clk
0:02:22.8]} 11... c5 {[%clk 0:02:53.3]} 12. e4 {[%clk 0:02:06.8]} 12... c4
{[%clk 0:02:36.9]} 13. Qe3 {[%clk 0:02:05.9]} 13... dxe4 {[%clk 0:02:27.7]} 14.
fxe4 {[%clk 0:02:01.3]} 14... Nxg4 {[%clk 0:02:25.7]} 15. Qg3 {[%clk 0:01:56]}
15... h5 {[%clk 0:02:25.6]} 16. Bc7 {[%clk 0:01:52.5]} 16... Qa6 {[%clk
0:02:23.1]} 17. d5 {[%clk 0:01:52.5]} 17... Rc8 {[%clk 0:02:17]} 18. dxe6 {[%clk
0:01:48.5]} 18... Qxe6 {[%clk 0:02:15.2]} 19. Nd4 {[%clk 0:01:44.8]} 19... Qh6+
{[%clk 0:02:13.7]} 20. Bf4 {[%clk 0:01:44]} 20... Qg6 {[%clk 0:01:46.7]} 21. Nd5
{[%clk 0:01:39.2]} 21... Bc5 {[%clk 0:01:39.4]} 22. Nf5 {[%clk 0:01:38.1]} 22...
Nf2 {[%clk 0:01:29]} 23. Qc3 {[%clk 0:01:28.2]} 23... Nxe4 {[%clk 0:01:09.9]}
24. Nxg7+ {[%clk 0:00:31.2]} 24... Kf8 {[%clk 0:01:10]} 25. Ne6+ {[%clk
0:00:30.9]} 25... Kg8 {[%clk 0:01:10.5]} 26. Qf3 {[%clk 0:00:15.4]} 26... fxe6
{[%clk 0:01:07.8]} 27. Rhg1 {[%clk 0:00:13.9]} 27... Bxg1 {[%clk 0:01:07.4]} 28.
Ne7+ {[%clk 0:00:14.1]} 28... Kg7 {[%clk 0:00:59.7]} 29. Nxg6 {[%clk 0:00:15]}
29... Nef6 {[%clk 0:00:53.9]} 30. Nxh8 {[%clk 0:00:13.3]} 30... Bc5 {[%clk
0:00:51.3]} 31. Qg3+ {[%clk 0:00:05]} 31... Kxh8 {[%clk 0:00:49.4]} 32. Qg6
{[%clk 0:00:04.5]} 32... Bf8 {[%clk 0:00:45.2]} 33. Be5 {[%clk 0:00:03.3]} 33...
Nxe5 {[%clk 0:00:44.3]} 34. Qxf6+ {[%clk 0:00:03.8]} 34... Bg7 {[%clk
0:00:44.9]} 35. Qg5 {[%clk 0:00:04.5]} 35... c3 {[%clk 0:00:37.3]} 36. Rg1
{[%clk 0:00:04.1]} 36... cxb2+ {[%clk 0:00:36.3]} 37. Kb1 {[%clk 0:00:04.5]}
37... Rc7 {[%clk 0:00:26]} 38. Qd8+ {[%clk 0:00:04.1]} 38... Kh7 {[%clk
0:00:25.4]} 39. Qxc7 {[%clk 0:00:04.8]} 39... Ng4 {[%clk 0:00:25.6]} 40. Rxg4
{[%clk 0:00:04]} 40... hxg4 {[%clk 0:00:26.1]} 41. Qf4 {[%clk 0:00:04.7]} 41...
g3 {[%clk 0:00:26.5]} 42. Qg4 {[%clk 0:00:05.3]} 42... Be5 {[%clk 0:00:26.7]}
43. Qe4+ {[%clk 0:00:05.7]} 43... Kh6 {[%clk 0:00:26.7]} 44. Qxe5 {[%clk
0:00:06.5]} 44... g2 {[%clk 0:00:27.3]} 45. Qg3 {[%clk 0:00:07.4]} 45... Kh5
{[%clk 0:00:27.6]} 46. Qxg2 {[%clk 0:00:07.8]} 46... e5 {[%clk 0:00:28.2]} 47.
Qxb7 {[%clk 0:00:08.7]} 47... e4 {[%clk 0:00:28.7]} 48. Qxe4 {[%clk 0:00:09.4]}
48... a5 {[%clk 0:00:28.6]} 49. Kxb2 {[%clk 0:00:10.3]} 49... a4 {[%clk
0:00:29.2]} 50. Qxa4 {[%clk 0:00:10.1]} 50... Kg6 {[%clk 0:00:29.2]} 51. Qd4
{[%clk 0:00:11]} 51... Kh5 {[%clk 0:00:30.1]} 52. c4 {[%clk 0:00:11.8]} 52...
Kg6 {[%clk 0:00:30.8]} 53. c5 {[%clk 0:00:12.7]} 53... Kf5 {[%clk 0:00:31.4]}
54. c6 {[%clk 0:00:13.6]} 54... Ke6 {[%clk 0:00:32.3]} 55. c7 {[%clk 0:00:14.5]}
55... Ke7 {[%clk 0:00:33.1]} 56. c8=Q {[%clk 0:00:13.7]} 56... Kf7 {[%clk
0:00:34]} 57. Qf5+ {[%clk 0:00:13.9]} 57... Ke8 {[%clk 0:00:34.2]} 58. Qdd7#
{[%clk 0:00:14.3]} 1-0

[Event "Early-Titled-Tuesday-Blitz-February-06-2024"]
[Site "Chess.com"]
[Date "2024.02.06"]
[Round "6"]
[White "Bodnar_Mykola"]
[Black "only_strong_moves"]
[Result "1-0"]
[WhiteElo "2507"]
[BlackElo "2664"]
[TimeControl "180+1"]
[EndTime "9:08:01 PST"]
[Termination "Bodnar_Mykola won on time"]

1. d4 {[%clk 0:02:55]} 1... Nf6 {[%clk 0:02:59.5]} 2. c4 {[%clk 0:02:54.4]} 2...
e6 {[%clk 0:03:00.1]} 3. Nf3 {[%clk 0:02:54.3]} 3... d5 {[%clk 0:03:00.6]} 4.
Bg5 {[%clk 0:02:52.5]} 4... Be7 {[%clk 0:03:00.1]} 5. e3 {[%clk 0:02:52]} 5...
Nbd7 {[%clk 0:02:59.8]} 6. Nc3 {[%clk 0:02:52.3]} 6... c6 {[%clk 0:02:59.8]} 7.
Rc1 {[%clk 0:02:51.1]} 7... h6 {[%clk 0:02:59.3]} 8. Bh4 {[%clk 0:02:50.3]} 8...
Ne4 {[%clk 0:02:57.5]} 9. Bxe7 {[%clk 0:02:48.9]} 9... Qxe7 {[%clk 0:02:58.4]}
10. Qc2 {[%clk 0:02:48.6]} 10... f5 {[%clk 0:02:57.6]} 11. Be2 {[%clk
0:02:47.2]} 11... O-O {[%clk 0:02:57]} 12. O-O {[%clk 0:02:47]} 12... b6 {[%clk
0:02:46]} 13. cxd5 {[%clk 0:02:36.1]} 13... cxd5 {[%clk 0:02:44]} 14. Nb5 {[%clk
0:02:24.7]} 14... Ba6 {[%clk 0:02:41.2]} 15. Nc7 {[%clk 0:01:57.5]} 15... Bxe2
{[%clk 0:02:40.8]} 16. Qxe2 {[%clk 0:01:58.1]} 16... Rac8 {[%clk 0:02:37.3]} 17.
Qa6 {[%clk 0:01:51.6]} 17... Ndc5 {[%clk 0:01:17.5]} 18. dxc5 {[%clk 0:01:41.5]}
18... Nxc5 {[%clk 0:01:17.9]} 19. Rxc5 {[%clk 0:01:27.8]} 19... bxc5 {[%clk
0:01:08.2]} 20. Qxe6+ {[%clk 0:01:26.5]} 20... Qxe6 {[%clk 0:01:08]} 21. Nxe6
{[%clk 0:01:27.4]} 21... Rf6 {[%clk 0:01:07.7]} 22. Nf4 {[%clk 0:01:26.6]} 22...
Rd6 {[%clk 0:01:03.5]} 23. h4 {[%clk 0:01:19.5]} 23... d4 {[%clk 0:00:52.9]} 24.
Rd1 {[%clk 0:01:17.4]} 24... Rcd8 {[%clk 0:00:45.9]} 25. exd4 {[%clk 0:01:17.2]}
25... cxd4 {[%clk 0:00:46.8]} 26. Nd3 {[%clk 0:01:17]} 26... Rc8 {[%clk
0:00:42.3]} 27. Rd2 {[%clk 0:01:16.9]} 27... Kh7 {[%clk 0:00:36.1]} 28. h5
{[%clk 0:01:16.8]} 28... Rb8 {[%clk 0:00:28]} 29. Nfe5 {[%clk 0:01:12.6]} 29...
Re8 {[%clk 0:00:18.5]} 30. f4 {[%clk 0:01:10.6]} 30... Rc8 {[%clk 0:00:17.5]}
31. Kf2 {[%clk 0:01:10.5]} 31... Rb6 {[%clk 0:00:16.6]} 32. Kf3 {[%clk
0:01:10.4]} 32... Ra6 {[%clk 0:00:14.5]} 33. b3 {[%clk 0:01:10.2]} 33... Rc3
{[%clk 0:00:12.8]} 34. g4 {[%clk 0:01:06.4]} 34... fxg4+ {[%clk 0:00:12.5]} 35.
Kxg4 {[%clk 0:01:07.1]} 35... Rf6 {[%clk 0:00:11.6]} 36. Kf3 {[%clk 0:01:05.2]}
36... Rf5 {[%clk 0:00:10.5]} 37. Kg4 {[%clk 0:01:05.2]} 37... Rf6 {[%clk
0:00:10.7]} 38. Rh2 {[%clk 0:01:03.3]} 38... Ra6 {[%clk 0:00:09.1]} 39. Kf3
{[%clk 0:01:02.8]} 39... Ra5 {[%clk 0:00:08.3]} 40. Ke4 {[%clk 0:01:02.7]} 40...
Ra6 {[%clk 0:00:04.6]} 41. Kxd4 {[%clk 0:00:59.1]} 41... Rc8 {[%clk 0:00:05.3]}
42. b4 {[%clk 0:00:57.9]} 42... Rd8+ {[%clk 0:00:05.6]} 43. Kc4 {[%clk
0:00:57.3]} 43... Ra3 {[%clk 0:00:05.1]} 44. b5 {[%clk 0:00:56.1]} 44... Rc8+
{[%clk 0:00:04.6]} 45. Nc6 {[%clk 0:00:55.7]} 45... a6 {[%clk 0:00:05.1]} 46.
Nb4 {[%clk 0:00:52.8]} 46... axb5+ {[%clk 0:00:04.6]} 47. Kxb5 {[%clk
0:00:53.6]} 47... Rf3 {[%clk 0:00:04.3]} 48. a4 {[%clk 0:00:50.7]} 48... Rxf4
{[%clk 0:00:04.8]} 49. a5 {[%clk 0:00:51.3]} 49... Rf5+ {[%clk 0:00:05.4]} 50.
Kb6 {[%clk 0:00:51]} 50... Rxa5 {[%clk 0:00:02.3]} 51. Kxa5 {[%clk 0:00:49.4]}
51... Rf8 {[%clk 0:00:03.2]} 52. Kb5 {[%clk 0:00:48.7]} 52... Rf5+ {[%clk
0:00:03.8]} 53. Kb6 {[%clk 0:00:49.1]} 53... Rg5 {[%clk 0:00:04]} 54. Nd3 {[%clk
0:00:46.4]} 54... Kg8 {[%clk 0:00:04.4]} 55. Nde5 {[%clk 0:00:45.4]} 55... Kf8
{[%clk 0:00:04.3]} 56. Kc7 {[%clk 0:00:45.1]} 56... Ke8 {[%clk 0:00:04.3]} 57.
Kd6 {[%clk 0:00:45.2]} 57... Rf5 {[%clk 0:00:04.6]} 58. Ke6 {[%clk 0:00:45.2]}
58... Rf6+ {[%clk 0:00:04.8]} 59. Kd5 {[%clk 0:00:44.3]} 59... Rf1 {[%clk
0:00:04.3]} 60. Ra2 {[%clk 0:00:43.7]} 60... Rd1+ {[%clk 0:00:02.3]} 61. Ke6
{[%clk 0:00:43.4]} 61... g6 {[%clk 0:00:01.5]} 62. Ra8+ {[%clk 0:00:42.9]} 1-0

[Event "Early-Titled-Tuesday-Blitz-February-06-2024"]
[Site "Chess.com"]
[Date "2024.02.06"]
[Round "6"]
[White "bteillet"]
[Black "Willi_Skibbe"]
[Result "0-1"]
[WhiteElo "2152"]
[BlackElo "2336"]
[TimeControl "180+1"]
[EndTime "9:08:03 PST"]
[Termination "Willi_Skibbe won by resignation"]

1. b4 {[%clk 0:02:59.5]} 1... f6 {[%clk 0:02:51.5]} 2. Bb2 {[%clk 0:02:57.4]}
2... Kf7 {[%clk 0:02:52.4]} 3. c4 {[%clk 0:02:56.6]} 3... e6 {[%clk 0:02:52.8]}
4. e3 {[%clk 0:02:56.4]} 4... Ne7 {[%clk 0:02:53.7]} 5. Nf3 {[%clk 0:02:56.4]}
5... g6 {[%clk 0:02:54.2]} 6. d4 {[%clk 0:02:55.9]} 6... Bg7 {[%clk 0:02:54.6]}
7. Bd3 {[%clk 0:02:53.9]} 7... d6 {[%clk 0:02:54.8]} 8. Nbd2 {[%clk 0:02:53.6]}
8... b6 {[%clk 0:02:55]} 9. Qc2 {[%clk 0:02:53.3]} 9... Bb7 {[%clk 0:02:54.8]}
10. a4 {[%clk 0:02:52.7]} 10... Nd7 {[%clk 0:02:52.8]} 11. O-O {[%clk
0:02:47.7]} 11... h6 {[%clk 0:02:48.9]} 12. Rac1 {[%clk 0:02:43.6]} 12... f5
{[%clk 0:02:41.8]} 13. c5 {[%clk 0:02:36.9]} 13... Bd5 {[%clk 0:02:28.9]} 14.
Bc4 {[%clk 0:02:31.6]} 14... Nf6 {[%clk 0:02:28.4]} 15. Rfe1 {[%clk 0:02:15.7]}
15... Bxc4 {[%clk 0:02:20.6]} 16. Qxc4 {[%clk 0:02:11.5]} 16... d5 {[%clk
0:02:11.9]} 17. Qb3 {[%clk 0:02:06.7]} 17... Ne4 {[%clk 0:02:11.2]} 18. c6
{[%clk 0:01:47.5]} 18... g5 {[%clk 0:02:01.5]} 19. Red1 {[%clk 0:01:40.8]} 19...
Rf8 {[%clk 0:01:56.4]} 20. b5 {[%clk 0:01:37.6]} 20... Kg8 {[%clk 0:01:51]} 21.
Ba3 {[%clk 0:01:37]} 21... Rf7 {[%clk 0:01:50.6]} 22. Nf1 {[%clk 0:01:27.7]}
22... Ng6 {[%clk 0:01:47.3]} 23. Ne1 {[%clk 0:01:06.5]} 23... f4 {[%clk
0:01:39.9]} 24. f3 {[%clk 0:01:05.2]} 24... Nf6 {[%clk 0:01:37.2]} 25. e4 {[%clk
0:01:05.1]} 25... dxe4 {[%clk 0:01:33.8]} 26. Qxe6 {[%clk 0:01:03.6]} 26... e3
{[%clk 0:01:22.7]} 27. Rd3 {[%clk 0:00:55.7]} 27... Qd5 {[%clk 0:01:15.3]} 28.
Qxd5 {[%clk 0:00:40.6]} 28... Nxd5 {[%clk 0:01:16.2]} 29. Nc2 {[%clk 0:00:29.8]}
29... Re8 {[%clk 0:01:11.5]} 30. h3 {[%clk 0:00:20.7]} 30... Bf8 {[%clk
0:00:54.1]} 31. Bxf8 {[%clk 0:00:16.5]} 31... Kxf8 {[%clk 0:00:50.5]} 32. Nh2
{[%clk 0:00:16.3]} 32... h5 {[%clk 0:00:47.6]} 33. Re1 {[%clk 0:00:15.3]} 33...
Nh4 {[%clk 0:00:45.9]} 34. Re2 {[%clk 0:00:14.9]} 34... Nf5 {[%clk 0:00:45.4]}
35. Nf1 {[%clk 0:00:13.9]} 35... Kg7 {[%clk 0:00:42]} 36. Rb3 {[%clk 0:00:11.9]}
36... Kg6 {[%clk 0:00:41.6]} 37. Kh2 {[%clk 0:00:11.9]} 37... Rf6 {[%clk
0:00:35.5]} 38. Rd3 {[%clk 0:00:11.8]} 38... Rd6 {[%clk 0:00:35.6]} 39. g3
{[%clk 0:00:10.6]} 39... fxg3+ {[%clk 0:00:29.9]} 40. Nxg3 {[%clk 0:00:10.3]}
40... Nh4 {[%clk 0:00:21.4]} 41. Ne1 {[%clk 0:00:06.8]} 41... Rde6 {[%clk
0:00:19.9]} 42. Ne4 {[%clk 0:00:06.4]} 42... Nxf3+ {[%clk 0:00:17.1]} 43. Nxf3
{[%clk 0:00:06.4]} 43... Rxe4 {[%clk 0:00:17.7]} 44. Kg3 {[%clk 0:00:07.1]}
44... Nf4 {[%clk 0:00:17.3]} 45. Ne5+ {[%clk 0:00:05.4]} 45... R8xe5 {[%clk
0:00:17.5]} 46. dxe5 {[%clk 0:00:05.5]} 46... Nxd3 {[%clk 0:00:17.1]} 47. Kf3
{[%clk 0:00:05.1]} 47... Rxe5 {[%clk 0:00:16.9]} 48. Rxe3 {[%clk 0:00:06]} 48...
Rxe3+ {[%clk 0:00:17.4]} 49. Kxe3 {[%clk 0:00:06.8]} 49... Nc5 {[%clk
0:00:17.8]} 50. Kd4 {[%clk 0:00:07.5]} 50... Kf6 {[%clk 0:00:16.8]} 51. a5
{[%clk 0:00:06.8]} 51... Ke6 {[%clk 0:00:16.8]} 52. axb6 {[%clk 0:00:06.8]}
52... axb6 {[%clk 0:00:17.4]} 0-1

[Event "Early-Titled-Tuesday-Blitz-February-06-2024"]
[Site "Chess.com"]
[Date "2024.02.06"]
[Round "6"]
[White "banhgiahuy2606"]
[Black "severomorskij"]
[Result "1-0"]
[WhiteElo "2704"]
[BlackElo "2890"]
[TimeControl "180+1"]
[EndTime "9:08:05 PST"]
[Termination "banhgiahuy2606 won on time"]

1. d4 {[%clk 0:02:52.8]} 1... Nf6 {[%clk 0:02:58.7]} 2. Bg5 {[%clk 0:02:51]}
2... e6 {[%clk 0:02:52.8]} 3. e4 {[%clk 0:02:41.7]} 3... h6 {[%clk 0:02:51.7]}
4. Bxf6 {[%clk 0:02:41.6]} 4... Qxf6 {[%clk 0:02:52.6]} 5. c3 {[%clk 0:02:42]}
5... d6 {[%clk 0:02:49.7]} 6. Bd3 {[%clk 0:02:40.7]} 6... g6 {[%clk 0:02:49.5]}
7. Nd2 {[%clk 0:02:36.7]} 7... Bg7 {[%clk 0:02:46.2]} 8. Ne2 {[%clk 0:02:37.1]}
8... e5 {[%clk 0:02:46]} 9. O-O {[%clk 0:02:36.9]} 9... O-O {[%clk 0:02:44.8]}
10. f4 {[%clk 0:02:37.5]} 10... Qe7 {[%clk 0:02:45.1]} 11. Nf3 {[%clk
0:02:32.4]} 11... Nd7 {[%clk 0:02:38]} 12. Qd2 {[%clk 0:02:25.6]} 12... c5
{[%clk 0:02:31.6]} 13. f5 {[%clk 0:02:05.4]} 13... cxd4 {[%clk 0:02:15.6]} 14.
cxd4 {[%clk 0:02:04]} 14... Nf6 {[%clk 0:02:05]} 15. Ng3 {[%clk 0:01:47.8]}
15... Bd7 {[%clk 0:01:40]} 16. fxg6 {[%clk 0:01:41.2]} 16... fxg6 {[%clk
0:01:38.3]} 17. Nh4 {[%clk 0:01:40.4]} 17... Kh7 {[%clk 0:01:34]} 18. dxe5
{[%clk 0:01:29.1]} 18... Qxe5 {[%clk 0:01:23.7]} 19. Nf3 {[%clk 0:01:25.4]}
19... Qc5+ {[%clk 0:01:15.3]} 20. Kh1 {[%clk 0:01:23.5]} 20... Ng4 {[%clk
0:01:15.6]} 21. Rac1 {[%clk 0:01:12.8]} 21... Qb6 {[%clk 0:01:08.9]} 22. e5
{[%clk 0:00:56.1]} 22... Nxe5 {[%clk 0:00:54.1]} 23. Nxe5 {[%clk 0:00:53.1]}
23... Bxe5 {[%clk 0:00:52.2]} 24. Qc2 {[%clk 0:00:52.7]} 24... d5 {[%clk
0:00:43.9]} 25. Nh5 {[%clk 0:00:50.6]} 25... Rac8 {[%clk 0:00:37.4]} 26. Qe2
{[%clk 0:00:46.2]} 26... Rxc1 {[%clk 0:00:33.1]} 27. Rxc1 {[%clk 0:00:46.2]}
27... Qd6 {[%clk 0:00:21]} 28. Re1 {[%clk 0:00:32.9]} 28... Bf5 {[%clk
0:00:11.8]} 29. Bxf5 {[%clk 0:00:19.5]} 29... Rxf5 {[%clk 0:00:10.6]} 30. Ng3
{[%clk 0:00:19.9]} 30... Bxg3 {[%clk 0:00:10.5]} 31. hxg3 {[%clk 0:00:19.3]}
31... Rh5+ {[%clk 0:00:10.3]} 32. Kg1 {[%clk 0:00:19.5]} 32... Qc5+ {[%clk
0:00:08.6]} 33. Qe3 {[%clk 0:00:19.9]} 33... Qxe3+ {[%clk 0:00:06.9]} 34. Rxe3
{[%clk 0:00:20.8]} 34... Rg5 {[%clk 0:00:04.9]} 35. Re7+ {[%clk 0:00:20.6]}
35... Kg8 {[%clk 0:00:05]} 36. Rxb7 {[%clk 0:00:21]} 36... Rxg3 {[%clk 0:00:05]}
37. Rxa7 {[%clk 0:00:21.2]} 37... Rd3 {[%clk 0:00:05.4]} 38. b4 {[%clk
0:00:20.4]} 38... d4 {[%clk 0:00:04]} 39. b5 {[%clk 0:00:20.8]} 39... Rd1+
{[%clk 0:00:04]} 40. Kf2 {[%clk 0:00:21.3]} 40... Rb1 {[%clk 0:00:03.6]} 41. a4
{[%clk 0:00:21.4]} 41... Rb2+ {[%clk 0:00:03.2]} 42. Kf3 {[%clk 0:00:20.9]}
42... Rb3+ {[%clk 0:00:04.1]} 43. Ke4 {[%clk 0:00:20.9]} 43... d3 {[%clk
0:00:04.2]} 44. Ke3 {[%clk 0:00:21.4]} 44... Kf8 {[%clk 0:00:02.7]} 45. Rb7
{[%clk 0:00:21.2]} 45... Ke8 {[%clk 0:00:02.7]} 46. a5 {[%clk 0:00:21.6]} 46...
Kd8 {[%clk 0:00:02.4]} 47. a6 {[%clk 0:00:22.2]} 47... Kc8 {[%clk 0:00:02.9]}
48. b6 {[%clk 0:00:21.5]} 48... Ra3 {[%clk 0:00:01.8]} 49. Rc7+ {[%clk
0:00:21.9]} 49... Kd8 {[%clk 0:00:01.7]} 50. a7 {[%clk 0:00:22.4]} 1-0

[Event "Early-Titled-Tuesday-Blitz-February-06-2024"]
[Site "Chess.com"]
[Date "2024.02.06"]
[Round "6"]
[White "amintabatabaei"]
[Black "Akewjon"]
[Result "0-1"]
[WhiteElo "2940"]
[BlackElo "2778"]
[TimeControl "180+1"]
[EndTime "9:08:06 PST"]
[Termination "Akewjon won by resignation"]

1. Nf3 {[%clk 0:03:00.9]} 1... Nf6 {[%clk 0:02:57.3]} 2. b3 {[%clk 0:03:01.4]}
2... d5 {[%clk 0:02:53]} 3. e3 {[%clk 0:03:01.3]} 3... e6 {[%clk 0:02:52.9]} 4.
Bb2 {[%clk 0:03:01.2]} 4... Bd6 {[%clk 0:02:52.7]} 5. c4 {[%clk 0:03:01.2]} 5...
O-O {[%clk 0:02:52.2]} 6. Nc3 {[%clk 0:03:01.5]} 6... Nc6 {[%clk 0:02:51.9]} 7.
Rc1 {[%clk 0:02:53.1]} 7... a6 {[%clk 0:02:48.5]} 8. d3 {[%clk 0:02:46.3]} 8...
Qe7 {[%clk 0:02:12.6]} 9. Be2 {[%clk 0:02:42.4]} 9... Ba3 {[%clk 0:01:56.6]} 10.
Qd2 {[%clk 0:02:38.4]} 10... Bxb2 {[%clk 0:01:55.8]} 11. Qxb2 {[%clk 0:02:39.3]}
11... Rd8 {[%clk 0:01:51.5]} 12. d4 {[%clk 0:02:21.7]} 12... dxc4 {[%clk
0:01:43.3]} 13. bxc4 {[%clk 0:02:12.8]} 13... e5 {[%clk 0:01:41.1]} 14. d5
{[%clk 0:02:13.3]} 14... Na5 {[%clk 0:01:37.4]} 15. e4 {[%clk 0:02:12.2]} 15...
b6 {[%clk 0:01:36.1]} 16. O-O {[%clk 0:02:06.9]} 16... Bg4 {[%clk 0:01:35.7]}
17. Ne1 {[%clk 0:02:04.3]} 17... Bxe2 {[%clk 0:01:28.1]} 18. Qxe2 {[%clk
0:02:05.2]} 18... Nd7 {[%clk 0:01:27.9]} 19. g3 {[%clk 0:01:55.4]} 19... Nc5
{[%clk 0:01:25.7]} 20. Ng2 {[%clk 0:01:52.6]} 20... Nab7 {[%clk 0:01:18.3]} 21.
Ne3 {[%clk 0:01:49.9]} 21... Nd6 {[%clk 0:01:18.8]} 22. f3 {[%clk 0:01:48.1]}
22... Re8 {[%clk 0:01:11.4]} 23. Kg2 {[%clk 0:01:43.6]} 23... g6 {[%clk
0:01:04]} 24. Ncd1 {[%clk 0:01:43.9]} 24... f5 {[%clk 0:01:01.6]} 25. Nf2 {[%clk
0:01:34.2]} 25... Qg5 {[%clk 0:00:39.2]} 26. h4 {[%clk 0:01:30.8]} 26... Qh5
{[%clk 0:00:35.4]} 27. g4 {[%clk 0:01:24.6]} 27... Qxh4 {[%clk 0:00:34.4]} 28.
Rh1 {[%clk 0:01:22.3]} 28... Qg5 {[%clk 0:00:34.4]} 29. exf5 {[%clk 0:00:53.6]}
29... e4 {[%clk 0:00:34.7]} 30. f4 {[%clk 0:00:41.6]} 30... Qxf4 {[%clk
0:00:34.8]} 31. Nh3 {[%clk 0:00:42.4]} 31... Qf3+ {[%clk 0:00:24.8]} 32. Qxf3
{[%clk 0:00:43]} 32... exf3+ {[%clk 0:00:25.7]} 33. Kxf3 {[%clk 0:00:43.9]}
33... Re7 {[%clk 0:00:24.4]} 34. Nf4 {[%clk 0:00:27.6]} 34... Rf8 {[%clk
0:00:23.9]} 35. Rcg1 {[%clk 0:00:25]} 35... Re4 {[%clk 0:00:21.1]} 36. Rh6
{[%clk 0:00:20.5]} 36... Nf7 {[%clk 0:00:18.3]} 37. Nxg6 {[%clk 0:00:06.4]}
37... Nxh6 {[%clk 0:00:11.9]} 38. Nxf8 {[%clk 0:00:06.8]} 38... Kxf8 {[%clk
0:00:12.6]} 39. Rh1 {[%clk 0:00:07.7]} 39... Nf7 {[%clk 0:00:12.7]} 40. Ng2
{[%clk 0:00:05.3]} 40... Ne5+ {[%clk 0:00:12.3]} 41. Kf2 {[%clk 0:00:05.6]}
41... Ncd3+ {[%clk 0:00:11.1]} 42. Kg3 {[%clk 0:00:04]} 42... Rxg4+ {[%clk
0:00:11.5]} 43. Kh3 {[%clk 0:00:04.8]} 43... Nf2+ {[%clk 0:00:09.9]} 0-1